bitfinex-derivatives/quotes_ETHF0:USTF0_20241007
["timestamp","ask_amount","ask_price","bid_price","bid_amount"]
[1728270399972,3.2078,2509.7,2509.5,0.27894]
[1728270400163,3.2078,2509.7,2509.4,0.27896]
[1728270400367,3.2078,2509.7,2509.5,0.27894]
[1728270400564,0.4092,2509.8,2509.6,0.71074]
[1728270400978,0.4092,2509.8,2509.7,0.4121]
[1728270403271,0.68812,2509.8,2509.7,0.4121]
[1728270404180,10.394,2509.8,2509.3,0.3188]
[1728270404375,2.8,2509.4,2509.3,0.3188]
[1728270405382,3.2124,2509.4,2509.3,0.3188]
[1728270407774,3.49136,2509.4,2509.3,0.3188]
[1728270408389,3.2124,2509.4,2509.3,0.3188]
[1728270412181,7.47616,2509.4,2509.3,0.3188]
[1728270412384,7.47616,2509.4,2508.5,4.19]
[1728270412385,13.39233206,2509.4,2508.4,0.371]
[1728270412693,0.27905,2508.6,2508.4,0.8471]
[1728270412989,4.68305,2509.3,2508.4,0.4194]
[1728270412990,3.07906,2508.5,2508.4,0.4194]
[1728270413185,2.8,2508.5,2508.4,0.4194]
[1728270417085,6.4485,2508.7,2508.4,0.4194]
[1728270417386,3.52362,2508.9,2508.5,0.27905]
[1728270417582,3.52362,2508.9,2508.6,0.4461]
[1728270417792,3.2078,2509.2,2508.6,0.4461]
[1728270418090,3.07897,2509.4,2509.0,0.279]
[1728270418282,3.07897,2509.4,2508.7,3.6228]
[1728270418283,0.27898,2509.2,2509.1,0.4202]
[1728270419989,2.8,2509.2,2509.1,0.4202]
[1728270420490,6.7856,2509.2,2508.8,0.27902]
[1728270420686,3.2078,2509.3,2508.8,0.69922]
[1728270420687,2.8,2509.0,2508.8,0.69922]
[1728270421487,2.8,2509.0,2508.8,0.4202]
[1728270421689,2.8,2509.2,2508.9,0.27902]
[1728270422183,3.07899,2509.2,2508.9,0.27902]
[1728270422383,0.279,2509.1,2508.8,0.69922]
[1728270423186,3.07899,2509.2,2508.8,0.69922]
[1728270423490,3.07899,2509.2,2508.9,0.27901]
[1728270424596,2.8,2509.2,2509.0,0.279]
[1728270424782,2.8,2509.2,2509.1,0.4121]
[1728270424981,2.8,2509.2,2509.1,0.8407]
[1728270429197,3.07898,2509.2,2509.1,0.8407]
[1728270430694,3.07898,2509.2,2509.1,0.4286]
[1728270432395,2.8,2509.2,2509.1,0.4286]
[1728270432601,6.28677,2509.4,2509.1,0.4286]
[1728270432803,0.27897,2509.3,2509.1,0.4286]
[1728270435308,0.27898,2509.2,2509.1,0.4286]
[1728270439404,3.07898,2509.2,2509.1,0.4286]
[1728270439801,2.8,2509.2,2508.9,0.4044]
[1728270440102,0.4049,2509.1,2508.9,0.811]
[1728270440805,0.4049,2509.1,2509.0,0.0873]
[1728270441701,3.07899,2509.2,2509.0,0.0873]
[1728270441900,0.4346,2509.3,2509.0,0.3663]
[1728270441901,0.27898,2509.3,2509.0,0.3663]
[1728270442204,2.8,2509.4,2509.0,0.3663]
[1728270442601,2.8,2509.6,2509.0,3.2951]
[1728270442797,0.27895,2509.5,2509.2,0.27898]
[1728270442997,0.27895,2509.5,2509.3,0.8551]
[1728270443199,0.27895,2509.5,2509.3,1.2954]
[1728270443402,3.07895,2509.6,2509.3,1.57437]
[1728270443809,0.27895,2509.5,2509.3,1.2954]
[1728270444107,0.27896,2509.4,2509.3,1.2954]
[1728270444800,2.8,2509.6,2509.3,1.2954]
[1728270445105,0.27896,2509.5,2509.3,1.2954]
[1728270445298,3.07895,2509.6,2509.3,1.57437]
[1728270445707,0.27895,2509.5,2509.3,1.57437]
[1728270446010,0.27895,2509.5,2509.3,1.2954]
[1728270446810,2.8,2509.6,2509.3,1.2954]
[1728270447305,2.8,2509.6,2509.4,0.27896]
[1728270447501,0.27893,2509.7,2509.4,0.27896]
[1728270448409,3.48382,2509.8,2509.5,0.27894]
[1728270449006,2.8,2509.8,2509.6,0.27893]
[1728270449206,3.48671,2509.9,2509.6,0.27893]
[1728270449207,3.48671,2509.9,2509.7,0.4436]
[1728270449409,3.0789,2510.0,2509.8,0.44]
[1728270449709,3.0789,2510.0,2509.8,0.8798]
[1728270449909,2.8,2510.0,2509.8,0.8798]
[1728270450209,3.0789,2510.0,2509.8,0.8798]
[1728270450905,0.27887,2510.2,2509.8,5.14271]
[1728270451202,0.27887,2510.2,2509.8,1.15871]
[1728270451703,3.2375,2510.3,2509.9,0.27889]
[1728270452011,3.51637,2510.3,2509.9,0.27889]
[1728270452195,3.51637,2510.3,2509.8,1.15871]
[1728270452196,3.2375,2510.3,2509.8,1.15871]
[1728270452400,0.27888,2510.1,2509.8,1.15871]
[1728270453708,0.27888,2510.2,2509.8,1.15871]
[1728270453909,0.27887,2510.2,2509.8,1.15871]
[1728270456706,3.6453,2510.3,2509.8,0.8798]
[1728270456910,3.6616,2510.4,2509.8,0.8798]
[1728270456911,0.4474,2510.4,2509.8,0.8798]
[1728270457108,2.8,2510.5,2510.2,0.27887]
[1728270457314,2.8,2510.5,2510.3,0.8748]
[1728270457701,3.07884,2510.5,2510.3,1.2985]
[1728270457902,2.8,2510.5,2510.3,1.2985]
[1728270458104,4.0358,2510.7,2509.7,3.2078]
[1728270458105,6.0078,2510.4,2509.7,3.2078]
[1728270458305,2.8,2509.9,2509.8,0.4045]
[1728270458505,0.27892,2509.8,2509.7,3.2078]
[1728270458701,0.71572,2509.8,2509.7,3.2078]
[1728270459112,0.4368,2509.8,2509.7,3.2078]
[1728270459815,2.8,2509.9,2509.7,3.2078]
[1728270460015,2.8,2509.9,2509.7,3.48673]
[1728270460205,2.8,2509.9,2509.8,0.4045]
[1728270461007,3.2368,2510.1,2509.8,0.4045]
[1728270461309,3.2368,2510.1,2509.9,0.3664]
[1728270462308,3.2368,2510.1,2509.9,0.0875]
[1728270463911,0.27889,2510.0,2509.9,0.0875]
[1728270464409,13.47069,2510.0,2509.9,0.0875]
[1728270464715,2.8,2509.6,2509.5,0.27895]
[1728270467322,2.8,2509.6,2509.4,0.4147]
[1728270467323,0.4319,2509.7,2509.6,0.27894]
[1728270467525,0.4319,2509.7,2509.5,0.27894]
[1728270467712,0.4319,2509.7,2509.6,0.27894]
[1728270467911,0.4319,2509.7,2509.4,0.4147]
[1728270468217,0.4319,2509.7,2509.5,0.27894]
[1728270469517,0.4319,2509.7,2509.4,0.4147]
[1728270470015,0.4319,2509.7,2509.5,0.27894]
[1728270470611,0.4319,2509.7,2509.4,0.4147]
[1728270470806,0.4319,2509.7,2509.5,0.27894]
[1728270471114,2.8,2509.8,2509.4,0.4147]
[1728270471421,2.8,2509.8,2509.7,0.27893]
[1728270474120,0.4069,2509.9,2509.7,0.27893]
[1728270474424,3.0789,2510.0,2509.7,0.27893]
[1728270474718,3.5082,2510.0,2509.7,0.27893]
[1728270476117,3.2293,2510.0,2509.8,0.27892]
[1728270476511,3.2293,2510.0,2509.7,0.27892]
[1728270477118,3.2293,2510.0,2509.8,0.4236]
[1728270477323,3.50819,2510.0,2509.8,0.4236]
[1728270477619,3.2293,2510.0,2509.8,0.4236]
[1728270479322,2.8,2510.0,2509.8,0.4236]
[1728270479508,0.4459,2510.1,2509.8,0.4236]
[1728270479710,0.4459,2510.1,2510.0,0.27889]
[1728270480422,1.7359,2510.1,2510.0,0.27889]
[1728270481522,1.7359,2510.1,2509.9,0.2789]
[1728270482624,1.7359,2510.1,2510.0,0.27889]
[1728270484822,1.7359,2510.1,2509.8,0.4236]
[1728270485025,1.7359,2510.1,2509.9,0.2789]
[1728270486027,3.48666,2510.3,2510.0,0.27889]
[1728270486328,1.29,2510.1,2510.0,0.27889]
[1728270488629,1.29,2510.4,2509.8,3.6314]
[1728270488827,1.29,2510.4,2510.2,0.27886]
[1728270489031,1.29,2510.4,2510.3,0.8579]
[1728270492431,1.56885,2510.4,2510.3,0.4268]
[1728270493027,1.29,2510.4,2510.3,0.4268]
[1728270496132,1.56885,2510.4,2510.3,0.4268]
[1728270497321,1.29,2510.4,2510.3,0.4268]
[1728270498537,1.56885,2510.4,2510.1,0.71308]
[1728270498727,1.56885,2510.4,2510.1,1.14708]
[1728270500129,1.29,2510.4,2510.1,0.8682]
[1728270500328,1.29,2510.4,2510.2,0.27886]
[1728270501926,1.29,2510.4,2510.1,0.8682]
[1728270502129,1.29,2510.4,2510.1,1.14707]
[1728270502130,1.56885,2510.4,2510.1,1.14707]
[1728270502832,1.29,2510.4,2510.1,0.8682]
[1728270503031,1.29,2510.4,2510.2,0.27887]
[1728270503257,1.56885,2510.4,2510.2,0.27887]
[1728270504068,1.56885,2510.4,2510.1,1.14708]
[1728270510242,0.27886,2510.3,2510.1,1.14708]
[1728270510448,0.27886,2510.3,2510.1,0.8682]
[1728270512049,1.56886,2510.4,2510.1,1.14708]
[1728270512242,0.27886,2510.3,2510.1,0.8682]
[1728270513344,0.27886,2510.3,2510.1,1.14708]
[1728270513943,0.27886,2510.3,2510.1,0.8682]
[1728270514555,0.27887,2510.2,2510.1,0.8682]
[1728270515040,1.29,2510.4,2510.1,1.14708]
[1728270515041,1.56886,2510.4,2510.1,1.14708]
[1728270515240,0.27887,2510.3,2510.1,1.14708]
[1728270517248,1.29,2510.4,2510.1,0.8682]
[1728270517454,0.27887,2510.2,2510.1,0.8682]
[1728270517650,0.27886,2510.3,2510.1,0.8682]
[1728270518042,0.27886,2510.3,2510.1,1.14708]
[1728270519754,1.29,2510.4,2510.1,1.14708]
[1728270520050,1.56885,2510.4,2510.1,1.14708]
[1728270520450,0.27886,2510.3,2510.1,0.8682]
[1728270520651,0.27886,2510.3,2510.1,1.14708]
[1728270523754,0.27886,2510.3,2510.1,0.8682]
[1728270524654,0.27886,2510.3,2510.1,1.14708]
[1728270525159,1.56886,2510.4,2510.1,1.14708]
[1728270525650,1.29,2510.4,2510.1,0.8682]
[1728270525846,0.68584,2510.5,2510.3,0.27886]
[1728270526554,0.407,2510.5,2510.3,0.27886]
[1728270526959,0.68584,2510.5,2510.3,0.27886]
[1728270527149,0.407,2510.5,2510.3,0.27886]
[1728270527348,0.68584,2510.5,2510.3,0.27886]
[1728270527762,2.05198,2511.0,2510.1,0.8682]
[1728270527763,1.29,2510.8,2510.2,1.29]
[1728270527945,0.429,2510.9,2510.5,1.29]
[1728270528152,1.9978,2510.9,2510.6,1.51332]
[1728270528858,1.99779,2510.9,2510.6,1.51332]
[1728270529353,4.4978,2510.8,2510.2,0.27886]
[1728270529554,1.29,2510.4,2510.3,1.2345]
[1728270530462,1.29,2510.4,2510.3,1.51336]
[1728270530956,0.429,2510.5,2510.3,1.51336]
[1728270530957,1.719,2510.5,2510.3,1.51336]
[1728270533157,3.2078,2510.8,2510.3,1.51336]
[1728270533158,3.2078,2510.8,2510.4,3.9832]
[1728270533362,6.53596466,2511.0,2510.6,0.27883]
[1728270533363,0.2788,2510.9,2510.6,0.27883]
[1728270533663,0.2788,2510.9,2510.7,1.2631]
[1728270534361,0.27879,2510.9,2510.7,1.2631]
[1728270535664,2.1363,2511.0,2510.7,1.2631]
[1728270535859,0.2788,2510.8,2510.7,1.2631]
[1728270537963,2.1363,2511.0,2510.7,1.2631]
[1728270538162,0.2788,2510.9,2510.7,1.2631]
[1728270538761,0.2788,2510.8,2510.7,1.2631]
[1728270539966,2.1363,2511.0,2510.7,1.2631]
[1728270540157,0.2788,2510.8,2510.7,1.2631]
[1728270540957,1.29,2510.8,2510.7,1.2631]
[1728270541264,1.5688,2510.8,2510.7,1.2631]
[1728270544966,1.29,2510.8,2510.7,1.2631]
[1728270546573,4.4978,2511.0,2510.7,1.54191]
[1728270546875,4.4978,2511.0,2510.7,1.2631]
[1728270547064,0.2788,2510.9,2510.7,1.2631]
[1728270547660,4.4978,2511.0,2510.7,1.2631]
[1728270547863,0.27879,2510.9,2510.7,1.2631]
[1728270548068,4.4978,2511.0,2510.7,1.2631]
[1728270548265,4.77659,2511.0,2510.7,1.2631]
[1728270548471,4.4978,2511.0,2510.7,1.2631]
[1728270548658,0.27879,2510.9,2510.7,1.2631]
[1728270549864,1.29,2511.0,2510.7,1.2631]
[1728270550069,1.56878,2511.0,2510.7,1.54191]
[1728270550865,1.56878,2511.0,2510.7,1.2631]
[1728270551466,1.29,2511.0,2510.7,1.2631]
[1728270551675,0.2788,2510.9,2510.7,1.2631]
[1728270553477,1.56879,2511.0,2510.7,1.2631]
[1728270553872,0.2788,2510.9,2510.7,1.2631]
[1728270555176,1.29,2511.0,2510.7,1.2631]
[1728270555379,1.29,2511.0,2510.7,1.54191]
[1728270555575,3.2078,2511.1,2510.8,1.29]
[1728270555776,1.98254,2511.4,2511.0,0.27878]
[1728270555978,1.98254,2511.4,2511.1,0.8473]
[1728270556176,1.98254,2511.4,2511.1,1.2788]
[1728270556371,0.27876,2511.3,2511.1,1.2788]
[1728270556572,0.4138,2511.4,2511.1,1.2788]
[1728270556782,1.98254,2511.4,2511.1,1.2788]
[1728270557379,0.27876,2511.3,2511.1,1.2788]
[1728270557681,1.29,2511.3,2511.1,1.2788]
[1728270557878,1.29,2511.3,2510.4,1.29]
[1728270557879,8.4802,2511.3,2510.4,1.29]
[1728270558079,0.4138,2511.4,2510.5,1.13853]
[1728270558080,1.5688,2510.9,2510.5,1.13853]
[1728270558280,0.4071,2510.8,2510.5,1.57363]
[1728270558688,0.6859,2510.8,2510.5,1.57363]
[1728270558880,0.4071,2510.8,2510.5,1.57363]
[1728270559082,0.6859,2510.8,2510.5,1.57363]
[1728270561587,0.4071,2510.8,2510.5,1.57363]
[1728270561786,1.29,2510.9,2510.5,1.57363]
[1728270561787,1.29,2510.9,2510.5,1.2948]
[1728270561978,4.9266,2511.0,2510.6,0.27882]
[1728270562186,4.9266,2511.0,2510.7,0.27881]
[1728270562391,5.20538,2511.0,2510.7,0.27881]
[1728270562594,5.20538,2511.0,2510.8,0.4306]
[1728270564082,4.9266,2511.0,2510.8,0.4306]
[1728270564281,3.2078,2511.0,2510.9,0.69519]
[1728270564486,3.2078,2511.0,2510.9,1.11849]
[1728270564991,1.29,2511.2,2511.0,0.27878]
[1728270565186,0.69815,2511.3,2511.1,0.27877]
[1728270565187,0.4194,2511.3,2511.1,0.27877]
[1728270565391,3.2078,2511.4,2511.2,0.4069]
[1728270565591,3.2078,2511.4,2511.3,0.4164]
[1728270565989,0.27877,2511.1,2510.8,0.2788]
[1728270566290,0.4194,2511.0,2510.8,0.2788]
[1728270566788,1.56876,2511.2,2510.9,4.26119]
[1728270566999,1.56876,2511.2,2510.8,0.2788]
[1728270567185,1.98816,2511.2,2510.9,0.4273]
[1728270567381,0.27877,2511.1,2510.9,0.4273]
[1728270567594,0.27877,2511.1,2511.0,0.4362]
[1728270567886,0.27877,2511.1,2510.9,0.4273]
[1728270567887,0.4413,2511.1,2510.9,0.4273]
[1728270568090,0.4194,2511.2,2511.0,0.4362]
[1728270568389,0.4194,2511.2,2511.1,0.4349]
[1728270568390,0.27876,2511.2,2511.1,0.4349]
[1728270568593,0.72216,2511.2,2511.1,0.4349]
[1728270570694,0.27877,2511.1,2511.0,0.4362]
[1728270572496,0.2788,2510.9,2510.7,0.4067]
[1728270572698,0.4392,2510.8,2510.7,0.8412]
[1728270575501,0.27879,2511.0,2510.7,5.10321]
[1728270575689,0.27879,2511.0,2510.8,0.4381]
[1728270575889,0.27878,2511.0,2510.8,0.4381]
[1728270576493,1.97588,2511.1,2510.8,0.4381]
[1728270577088,1.6971,2511.1,2510.8,0.4381]
[1728270577291,0.27878,2511.0,2510.8,0.4381]
[1728270580692,1.6971,2511.1,2510.8,0.4381]
[1728270580693,0.27879,2510.9,2510.8,0.4381]
[1728270580899,1.6971,2511.1,2510.8,0.4381]
[1728270580900,0.27879,2511.0,2510.8,0.4381]
[1728270583791,0.27878,2511.1,2510.8,0.7169]
[1728270583996,1.6955,2511.2,2510.8,0.7169]
[1728270584197,0.417,2511.3,2510.8,0.7169]
[1728270584198,0.27875,2511.3,2510.8,0.4381]
[1728270584402,0.27875,2511.3,2510.9,0.27879]
[1728270584905,0.27875,2511.3,2511.0,0.4344]
[1728270585095,0.27875,2511.3,2511.1,0.4287]
[1728270585292,0.27875,2511.3,2511.2,0.4432]
[1728270590001,3.2078,2511.5,2511.2,0.4432]
[1728270590211,3.2078,2511.5,2511.3,0.27875]
[1728270590506,3.2078,2511.5,2511.4,1.29]
[1728270591405,3.48653,2511.5,2511.3,0.427]
[1728270594508,0.27873,2511.5,2511.3,0.427]
[1728270594704,0.27873,2511.5,2511.3,1.717]
[1728270599109,0.27872,2511.6,2511.3,1.99575]
[1728270599309,0.8633,2511.8,2511.3,1.717]
[1728270599310,0.27873,2511.5,2511.3,1.717]
[1728270600311,0.27872,2511.6,2511.3,1.717]
[1728270600517,0.27872,2511.6,2511.3,1.99575]
[1728270601520,0.27872,2511.6,2511.3,5.20355]
[1728270604619,0.27872,2511.6,2511.3,1.99575]
[1728270605319,0.27871,2511.7,2511.3,1.99575]
[1728270607124,0.4184,2512.0,2511.5,1.29]
[1728270607421,0.4184,2512.0,2511.3,0.427]
[1728270607422,1.08248,2512.0,2511.7,1.5687]
[1728270607624,1.08248,2512.0,2511.8,0.4023]
[1728270608015,0.66408,2512.0,2511.8,0.4023]
[1728270608321,3.2078,2512.2,2511.9,0.27868]
[1728270608322,0.27865,2512.2,2511.9,0.27868]
[1728270608510,0.27864,2512.3,2512.0,2.33857]
[1728270608913,0.27864,2512.3,2512.1,0.4023]
[1728270609213,0.27865,2512.2,2512.1,0.4023]
[1728270609615,1.07253,2512.4,2512.1,1.6923]
[1728270609819,1.07253,2512.4,2512.1,1.97096]
[1728270610114,0.27862,2512.5,2512.3,1.29]
[1728270610310,0.3812,2512.6,2512.3,1.29]
[1728270610311,0.3812,2512.6,2512.4,0.3949]
[1728270610521,0.27861,2512.6,2512.4,0.3949]
[1728270611021,0.27861,2512.6,2512.4,1.6849]
[1728270611423,0.4069,2512.7,2512.4,1.6849]
[1728270611620,0.6855,2512.7,2512.4,1.6849]
[1728270612321,0.4069,2512.7,2512.6,1.29]
[1728270612623,3.48639,2512.8,2512.6,1.29]
[1728270613320,3.2078,2512.8,2512.6,1.5686]
[1728270614027,0.4069,2512.9,2512.6,1.5686]
[1728270614717,0.68547,2512.9,2512.6,1.29]
[1728270614922,0.68547,2512.9,2512.7,1.29]
[1728270614923,0.4069,2512.9,2512.7,1.29]
[1728270615115,0.27855,2513.1,2512.7,1.56859]
[1728270615311,0.27855,2513.1,2512.8,0.4168]
[1728270615312,0.69675,2513.1,2512.8,0.4168]
[1728270617116,0.69675,2513.1,2512.9,1.29]
[1728270617322,0.4182,2513.1,2512.9,1.29]
[1728270617625,0.69676,2513.1,2512.9,1.29]
[1728270617820,0.27856,2513.1,2512.9,1.29]
[1728270618022,1.08193,2513.3,2512.9,1.29]
[1728270618224,1.08193,2513.3,2513.0,0.8282]
[1728270618530,0.27851,2513.5,2513.2,1.29]
[1728270618717,3.8697,2513.6,2513.3,0.419]
[1728270619223,0.3834,2513.6,2513.4,1.29]
[1728270619524,1.9519,2513.6,2513.3,0.419]
[1728270619722,0.6619,2513.6,2513.3,0.419]
[1728270621030,0.3834,2513.6,2513.3,0.419]
[1728270621327,0.66189,2513.6,2513.3,0.419]
[1728270621728,0.3834,2513.6,2513.3,0.419]
[1728270622527,0.6619,2513.6,2513.3,0.419]
[1728270623330,0.3834,2513.6,2513.0,6.836]
[1728270623525,0.27857,2512.9,2512.8,4.19]
[1728270623727,3.07857,2512.9,2512.8,4.19]
[1728270625628,2.8,2512.9,2512.8,4.19]
[1728270625931,3.07857,2512.9,2512.8,4.19]
[1728270626435,3.07857,2512.9,2512.5,1.09291]
[1728270626436,0.27859,2512.7,2512.5,0.8143]
[1728270626626,2.8,2512.9,2512.5,0.8143]
[1728270626827,0.27859,2512.7,2512.5,0.8143]
[1728270627133,2.8,2512.9,2512.5,0.8143]
[1728270627433,2.8,2512.9,2512.5,0.3995]
[1728270627638,0.27863,2512.5,2512.2,0.8034]
[1728270628027,6.0078,2512.7,2512.2,0.8034]
[1728270628028,0.27863,2512.4,2512.2,0.8034]
[1728270628238,0.27862,2512.5,2512.2,0.8034]
[1728270628933,0.27862,2512.5,2512.2,0.3876]
[1728270629135,0.27863,2512.4,2512.2,0.3876]
[1728270629634,0.67752,2512.5,2512.2,0.3876]
[1728270630838,0.3989,2512.5,2512.2,0.3876]
[1728270631031,0.67091,2512.6,2512.2,0.66624]
[1728270632831,0.27862,2512.5,2512.2,0.3876]
[1728270633832,6.0078,2512.7,2512.2,0.3876]
[1728270633833,3.4864,2512.7,2512.3,0.27863]
[1728270634038,0.2786,2512.7,2512.3,0.27863]
[1728270635034,0.27861,2512.6,2512.2,0.66624]
[1728270635437,2.8,2512.3,2512.2,0.3876]
[1728270635637,0.27865,2512.2,2512.1,3.2078]
[1728270636637,3.07864,2512.3,2512.1,3.2078]
[1728270636841,2.8,2512.3,2512.1,3.2078]
[1728270637038,3.07864,2512.3,2512.1,3.2078]
[1728270639542,3.07864,2512.3,2511.8,0.4169]
[1728270639543,6.0078,2512.3,2511.8,0.4169]
[1728270639736,0.27867,2512.1,2511.8,0.804]
[1728270640436,2.8,2512.1,2511.8,0.804]
[1728270640633,2.8,2511.9,2511.3,3.48655]
[1728270640837,2.8,2511.7,2511.3,3.48655]
[1728270641239,2.8,2511.7,2511.4,0.27873]
[1728270641441,3.07871,2511.7,2511.4,0.27873]
[1728270641833,0.27872,2511.6,2511.3,3.48655]
[1728270642237,2.8,2511.7,2511.3,3.2078]
[1728270642542,0.27872,2511.6,2511.3,3.2078]
[1728270642739,0.27872,2511.6,2511.3,3.48655]
[1728270642941,0.27872,2511.6,2511.3,3.2078]
[1728270643147,3.07871,2511.7,2511.4,0.27874]
[1728270644545,3.07871,2511.7,2511.3,3.2078]
[1728270644745,3.07871,2511.7,2511.3,3.48654]
[1728270645341,3.07871,2511.7,2511.3,3.2078]
[1728270645544,3.07871,2511.7,2511.4,0.27874]
[1728270645737,2.8,2511.7,2511.4,0.27874]
[1728270646145,0.27872,2511.6,2511.3,3.48654]
[1728270646343,3.07871,2511.7,2511.3,3.48654]
[1728270646949,2.8,2511.7,2511.3,3.48654]
[1728270647250,3.07871,2511.7,2511.3,3.48654]
[1728270647449,0.27872,2511.6,2511.3,3.2078]
[1728270647953,0.27874,2511.5,2511.3,3.2078]
[1728270648544,0.3835,2511.6,2511.3,3.2078]
[1728270648858,0.66222,2511.6,2511.3,3.2078]
[1728270649852,0.3835,2511.6,2511.3,3.2078]
[1728270650153,0.27874,2511.5,2511.3,3.2078]
[1728270651056,0.27874,2511.5,2511.2,1.45666]
[1728270653657,0.66222,2511.6,2511.2,1.45666]
[1728270658453,1.29,2511.4,2511.2,1.1779]
[1728270659267,1.29,2511.4,2511.2,1.45666]
[1728270659964,1.29,2511.4,2511.2,1.1779]
[1728270660164,1.29,2511.4,2511.3,0.27875]
[1728270660367,0.66222,2511.6,2511.3,0.27875]
[1728270660559,1.29,2511.5,2511.3,0.27875]
[1728270661560,0.3983,2511.9,2511.3,1.29]
[1728270661754,0.3983,2511.9,2511.4,0.27873]
[1728270661755,1.29,2511.6,2511.4,0.27873]
[1728270661958,1.29,2511.6,2511.3,1.29]
[1728270662265,1.29,2511.6,2511.5,0.27873]
[1728270663068,1.29,2511.6,2511.2,1.1779]
[1728270663371,1.29,2511.6,2511.4,0.27873]
[1728270664368,0.2787,2511.8,2511.5,0.27873]
[1728270664677,1.29,2511.7,2511.6,0.7942]
[1728270665066,1.29,2511.7,2511.6,1.2006]
[1728270665462,1.5687,2511.7,2511.6,1.2006]
[1728270665771,1.29,2511.7,2511.6,1.2006]
[1728270669674,0.4133,2511.9,2511.6,1.2006]
[1728270669976,1.7033,2511.9,2511.6,1.47931]
[1728270670175,1.7033,2511.9,2511.6,1.2006]
[1728270670373,0.3898,2512.2,2511.6,2.4906]
[1728270670576,1.29,2512.0,2511.6,2.4906]
[1728270670780,1.29,2512.0,2511.9,0.27868]
[1728270671580,1.29,2512.0,2511.6,2.4906]
[1728270671880,1.29,2511.8,2511.7,0.2787]
[1728270677383,0.2787,2511.7,2511.6,0.7942]
[1728270677586,1.9745,2511.7,2511.6,0.7942]
[1728270680787,0.27872,2511.6,2511.4,0.3823]
[1728270680981,0.27872,2511.6,2511.5,0.4116]
[1728270681178,0.27872,2511.6,2511.4,0.7893]
[1728270681179,0.27873,2511.5,2511.4,0.7893]
[1728270681384,0.27873,2511.5,2511.2,0.4116]
[1728270681385,0.27875,2511.3,2511.2,0.4116]
[1728270681686,1.07124,2511.4,2511.2,0.4116]
[1728270681891,0.39,2511.3,2511.2,0.4116]
[1728270682090,1.68,2511.3,2511.2,0.4116]
[1728270683082,0.39,2511.3,2511.2,0.4116]
[1728270683288,1.68,2511.3,2511.2,0.4116]
[1728270684084,1.95875,2511.3,2511.2,0.4116]
[1728270684685,1.68,2511.3,2511.2,0.4116]
[1728270688295,0.39,2511.3,2511.2,0.69036]
[1728270688496,1.68,2511.3,2511.2,0.69036]
[1728270688990,1.68,2511.3,2511.2,0.4116]
[1728270689296,1.68,2511.3,2511.2,0.69036]
[1728270690598,0.39,2511.3,2511.2,0.69036]
[1728270690899,1.68,2511.3,2511.2,0.69036]
[1728270691690,1.68,2511.3,2511.2,0.4116]
[1728270692891,1.68,2511.3,2511.2,0.69036]
[1728270693494,1.68,2511.3,2511.2,0.4116]
[1728270695600,1.68,2511.3,2511.0,0.8124]
[1728270695797,1.29,2511.1,2511.0,1.09118]
[1728270696197,1.29,2511.1,2511.0,0.8124]
[1728270697496,1.29,2511.1,2510.7,0.3834]
[1728270697497,8.4802,2511.1,2510.7,0.3834]
[1728270697691,8.4802,2511.1,2510.6,0.3943]
[1728270697692,1.5688,2510.8,2510.6,0.3943]
[1728270698193,1.29,2510.8,2510.6,0.67313]
[1728270700302,1.29,2510.8,2510.4,0.4169]
[1728270700494,1.29,2510.8,2510.3,0.4199]
[1728270700495,1.29,2510.5,2510.3,1.11326]
[1728270700696,0.397,2510.4,2510.3,1.11326]
[1728270702597,0.397,2510.4,2510.3,0.8344]
[1728270702907,0.397,2510.4,2510.3,0.4145]
[1728270703789,0.397,2510.4,2510.2,3.48667]
[1728270703995,1.29,2510.3,2510.2,3.48667]
[1728270704793,1.29,2510.3,2510.2,3.2078]
[1728270704999,1.29,2510.3,2510.2,3.48667]
[1728270707301,0.397,2510.4,2510.2,3.2078]
[1728270707497,0.4018,2510.6,2510.5,0.27884]
[1728270707698,1.6918,2510.6,2510.5,0.27884]
[1728270707895,5.675,2510.6,2510.5,0.27884]
[1728270708102,1.6918,2510.6,2510.5,0.27884]
[1728270708498,1.6918,2510.6,2510.5,0.67794]
[1728270712808,1.29,2510.6,2510.5,0.67794]
[1728270716306,0.4223,2510.7,2510.6,0.27883]
[1728270716512,0.4217,2510.9,2510.8,0.2788]
[1728270716806,0.4217,2510.9,2510.5,3.6069]
[1728270716807,1.29,2510.8,2510.7,0.27882]
[1728270744321,3.48654,2511.4,2510.7,9.9832]
[1728270744526,3.48654,2511.4,2511.1,0.27877]
[1728270744527,0.68264,2511.4,2511.1,0.27877]
[1728270744716,0.68264,2511.4,2511.2,0.3963]
[1728270746727,0.4039,2511.4,2511.2,0.3963]
[1728270746928,0.4039,2511.4,2511.2,0.67506]
[1728270747527,1.29,2511.3,2511.2,0.67506]
[1728270747737,0.4039,2511.4,2511.3,0.27875]
[1728270747918,0.4003,2511.6,2511.2,0.67506]
[1728270747919,1.29,2511.3,2511.2,0.67506]
[1728270755130,0.8164,2511.6,2511.2,0.3963]